[Event "Titled Tuesday Blitz June 21 Late 2022"]
[White "Keymer, Vincent"]
[Black "Abarca Gonzalez, Nicolas"]
[WhiteFideId "12940690"]
[BlackFideId "3409422"]
[WhiteElo "2548"]
[BlackElo "2504"]
[Result "0-1"]
[Round "04"]
[TimeControl "180+1"]
[Date "2022.06.21"]
[WhiteClock "0:00:04"]
[BlackClock "0:00:06"]

1. Nf3 {[%clk 0:03:00]}  c5 {[%clk 0:02:58]} 2. c4 {[%clk 0:02:58]}  Nc6 {[%clk 0:02:57]} 3. Nc3 {[%clk 0:02:58]}  g6 {[%clk 0:02:57]} 4. e3 {[%clk 0:02:58]}  Bg7 {[%clk 0:02:57]} 5. d4 {[%clk 0:02:59]}  cxd4 {[%clk 0:02:51]} 6. exd4 {[%clk 0:02:59]}  d6 {[%clk 0:02:51]} 7. Be2 {[%clk 0:02:59]}  Bg4 {[%clk 0:02:50]} 8. d5 {[%clk 0:02:55]}  Bxf3 {[%clk 0:02:49]} 9. Bxf3 {[%clk 0:02:55]}  Ne5 {[%clk 0:02:49]} 10. Be2 {[%clk 0:02:50]}  Qa5 {[%clk 0:02:46]} 11. Qb3 {[%clk 0:02:44]}  Nf6 {[%clk 0:02:40]} 12. Qxb7 {[%clk 0:02:34]}  O-O {[%clk 0:02:38]} 13. Qb5 {[%clk 0:02:09]}  Qc7 {[%clk 0:02:33]} 14. O-O {[%clk 0:02:08]}  Rfc8 {[%clk 0:02:25]} 15. b3 {[%clk 0:02:06]}  Rab8 {[%clk 0:02:22]} 16. Qa4 {[%clk 0:01:42]}  Nfd7 {[%clk 0:02:23]} 17. Nb5 {[%clk 0:01:25]}  Qd8 {[%clk 0:02:17]} 18. Be3 {[%clk 0:01:20]}  a6 {[%clk 0:01:57]} 19. Nd4 {[%clk 0:01:18]}  Nc5 {[%clk 0:01:51]} 20. Qa3 {[%clk 0:01:17]}  Ned3 {[%clk 0:01:48]} 21. Rad1 {[%clk 0:01:10]}  Nb4 {[%clk 0:01:45]} 22. Qb2 {[%clk 0:00:57]}  a5 {[%clk 0:01:39]} 23. Qd2 {[%clk 0:00:54]}  h5 {[%clk 0:01:34]} 24. a3 {[%clk 0:00:34]}  Nba6 {[%clk 0:01:28]} 25. Nc6 {[%clk 0:00:33]}  Rxc6 {[%clk 0:01:24]} 26. dxc6 {[%clk 0:00:34]}  Rxb3 {[%clk 0:01:24]} 27. Rb1 {[%clk 0:00:34]}  Rxa3 {[%clk 0:01:22]} 28. Bf3 {[%clk 0:00:30]}  a4 {[%clk 0:01:15]} 29. Rb5 {[%clk 0:00:22]}  Rd3 {[%clk 0:01:07]} 30. Qa5 {[%clk 0:00:20]}  Qxa5 {[%clk 0:00:55]} 31. Rxa5 {[%clk 0:00:21]}  Bc3 {[%clk 0:00:55]} 32. Rb5 {[%clk 0:00:20]}  Nc7 {[%clk 0:00:46]} 33. Bxc5 {[%clk 0:00:18]}  dxc5 {[%clk 0:00:43]} 34. Rb7 {[%clk 0:00:12]}  Be5 {[%clk 0:00:43]} 35. Ra7 {[%clk 0:00:13]}  a3 {[%clk 0:00:39]} 36. Re1 {[%clk 0:00:12]}  Bd6 {[%clk 0:00:37]} 37. Rd1 {[%clk 0:00:11]}  Rc3 {[%clk 0:00:33]} 38. h3 {[%clk 0:00:11]}  Ne6 {[%clk 0:00:25]} 39. Ra1 {[%clk 0:00:10]}  Nc7 {[%clk 0:00:22]} 40. R7xa3 {[%clk 0:00:09]}  Rxc4 {[%clk 0:00:20]} 41. Ra7 {[%clk 0:00:10]}  Kg7 {[%clk 0:00:19]} 42. Rd1 {[%clk 0:00:09]}  Rd4 {[%clk 0:00:17]} 43. Rb1 {[%clk 0:00:10]}  c4 {[%clk 0:00:15]} 44. g3 {[%clk 0:00:10]}  h4 {[%clk 0:00:12]} 45. g4 {[%clk 0:00:10]}  c3 {[%clk 0:00:12]} 46. Rc1 {[%clk 0:00:10]}  Rc4 {[%clk 0:00:11]} 47. Rc2 {[%clk 0:00:10]}  Rc5 {[%clk 0:00:10]} 48. Ra3 {[%clk 0:00:06]}  Be5 {[%clk 0:00:09]} 49. Ra4 {[%clk 0:00:06]}  Ne6 {[%clk 0:00:08]} 50. Be4 {[%clk 0:00:05]}  Nd4 {[%clk 0:00:07]} 51. Rc1 {[%clk 0:00:03]}  Ne2+ {[%clk 0:00:07]} 52. Kf1 {[%clk 0:00:02]}  Nxc1 {[%clk 0:00:08]} 53. f4 {[%clk 0:00:03]}  Bd6 {[%clk 0:00:07]} 54. f5 {[%clk 0:00:02]}  Nb3 {[%clk 0:00:07]} 55. Bc2 {[%clk 0:00:02]}  Nd2+ {[%clk 0:00:06]} 56. Ke2 {[%clk 0:00:03]}  Nc4 {[%clk 0:00:06]} 57. fxg6 {[%clk 0:00:03]}  fxg6 {[%clk 0:00:06]} 58. c7 {[%clk 0:00:04]}  Rxc7 {[%clk 0:00:06]} 59. Kd3 {[%clk 0:00:05]}  Ne5+ {[%clk 0:00:06]} 60. Ke3 {[%clk 0:00:05]}  g5 {[%clk 0:00:06]} 61. Ke4 {[%clk 0:00:05]}  Ng6 {[%clk 0:00:07]} 62. Kd5 {[%clk 0:00:06]}  Nf4+ {[%clk 0:00:07]} 63. Ke4 {[%clk 0:00:04]}  Nxh3 {[%clk 0:00:07]} 64. Kf5 {[%clk 0:00:05]}  Nf2 {[%clk 0:00:07]} 65. Ra8 {[%clk 0:00:02]}  e6+ {[%clk 0:00:06]} 66. Kxg5 {[%clk 0:00:02]}  h3 {[%clk 0:00:05]} 67. Re8 {[%clk 0:00:01]}  Be7+ {[%clk 0:00:05]} 68. Rxe7+ {[%clk 0:00:01]}  Rxe7 {[%clk 0:00:05]} 69. Kh4 {[%clk 0:00:02]}  h2 {[%clk 0:00:05]} 70. Kg3 {[%clk 0:00:03]}  h1=Q {[%clk 0:00:05]} 71. Kxf2 {[%clk 0:00:04]}  Qd5 {[%clk 0:00:06]} 0-1


[Site "https://www.chess.com"]

[Event "Titled Tuesday Blitz June 21 Late 2022"]
[White "Khabinets, Ivan"]
[Black "Shohat, Yotam"]
[WhiteFideId "14115980"]
[BlackFideId "2813955"]
[WhiteElo "2114"]
[BlackElo "2119"]
[Result "1-0"]
[Round "04"]
[TimeControl "180+1"]
[Date "2022.06.22"]
[WhiteClock "0:01:01"]
[BlackClock "0:00:01"]

1. c4 {[%clk 0:03:00]}  c6 {[%clk 0:02:52]} 2. Nf3 {[%clk 0:02:58]}  d5 {[%clk 0:02:51]} 3. d4 {[%clk 0:02:57]}  Nf6 {[%clk 0:02:50]} 4. Nc3 {[%clk 0:02:57]}  e6 {[%clk 0:02:50]} 5. g3 {[%clk 0:02:57]}  dxc4 {[%clk 0:02:48]} 6. a4 {[%clk 0:02:55]}  c5 {[%clk 0:02:44]} 7. dxc5 {[%clk 0:02:48]}  Qxd1+ {[%clk 0:02:43]} 8. Nxd1 {[%clk 0:02:49]}  Bxc5 {[%clk 0:02:42]} 9. Ne3 {[%clk 0:02:50]}  Ne4 {[%clk 0:02:32]} 10. Bg2 {[%clk 0:02:48]}  Bb4+ {[%clk 0:02:30]} 11. Nd2 {[%clk 0:02:43]}  Nxd2 {[%clk 0:01:56]} 12. Bxd2 {[%clk 0:02:43]}  Bxd2+ {[%clk 0:01:56]} 13. Kxd2 {[%clk 0:02:43]}  Ke7 {[%clk 0:01:57]} 14. Nxc4 {[%clk 0:02:42]}  Nc6 {[%clk 0:01:57]} 15. Bxc6 {[%clk 0:02:40]}  bxc6 {[%clk 0:01:56]} 16. e3 {[%clk 0:02:29]}  f6 {[%clk 0:01:53]} 17. Rhd1 {[%clk 0:02:26]}  e5 {[%clk 0:01:52]} 18. Na5 {[%clk 0:02:22]}  Bd7 {[%clk 0:01:48]} 19. Rac1 {[%clk 0:02:22]}  Rab8 {[%clk 0:01:45]} 20. Kc3 {[%clk 0:02:20]}  h5 {[%clk 0:01:27]} 21. Nb3 {[%clk 0:02:19]}  c5 {[%clk 0:01:08]} 22. Nxc5 {[%clk 0:02:14]}  Bg4 {[%clk 0:00:57]} 23. f3 {[%clk 0:01:57]}  Rhc8 {[%clk 0:00:43]} 24. b4 {[%clk 0:01:44]}  Bxf3 {[%clk 0:00:38]} 25. Rd7+ {[%clk 0:01:44]}  Kf8 {[%clk 0:00:35]} 26. Rxa7 {[%clk 0:01:43]}  g5 {[%clk 0:00:13]} 27. Kd2 {[%clk 0:01:34]}  Rd8+ {[%clk 0:00:09]} 28. Ke1 {[%clk 0:01:32]}  Kg8 {[%clk 0:00:08]} 29. b5 {[%clk 0:01:27]}  Rd5 {[%clk 0:00:07]} 30. Rb7 {[%clk 0:01:25]}  Rbd8 {[%clk 0:00:05]} 31. a5 {[%clk 0:01:23]}  g4 {[%clk 0:00:04]} 32. a6 {[%clk 0:01:07]}  Rd2 {[%clk 0:00:02]} 33. Rd7 {[%clk 0:01:01]}  R2xd7 {[%clk 0:00:01]} 34. Nxd7 {[%clk 0:01:01]}  Rxd7 {[%clk 0:00:02]} 35. b6 {[%clk 0:01:02]}  Rd6 {[%clk 0:00:01]} 36. b7 {[%clk 0:01:02]}  Rb6 {[%clk 0:00:01]} 37. Rc8+ {[%clk 0:01:01]} 1-0


[Site "https://www.chess.com"]

[Event "Titled Tuesday Blitz June 21 Late 2022"]
[White "Koc, Przemyslaw"]
[Black "Zhu, Jiner"]
[WhiteFideId "1109081"]
[BlackFideId "8608059"]
[WhiteElo "2134"]
[BlackElo "2281"]
[Result "0-1"]
[Round "04"]
[TimeControl "180+1"]
[Date "2022.06.22"]
[WhiteClock "0:00:05"]
[BlackClock "0:00:41"]

1. d4 {[%clk 0:03:00]}  Nf6 {[%clk 0:02:59]} 2. Bg5 {[%clk 0:03:01]}  d5 {[%clk 0:02:58]} 3. Nd2 {[%clk 0:03:00]}  e6 {[%clk 0:02:55]} 4. e3 {[%clk 0:03:00]}  Be7 {[%clk 0:02:54]} 5. Bd3 {[%clk 0:03:00]}  O-O {[%clk 0:02:55]} 6. Ngf3 {[%clk 0:03:00]}  c5 {[%clk 0:02:55]} 7. c3 {[%clk 0:03:00]}  b6 {[%clk 0:02:53]} 8. O-O {[%clk 0:02:56]}  Ba6 {[%clk 0:02:52]} 9. Bxa6 {[%clk 0:02:53]}  Nxa6 {[%clk 0:02:53]} 10. Ne5 {[%clk 0:02:54]}  Nb8 {[%clk 0:02:29]} 11. f4 {[%clk 0:02:53]}  Qc7 {[%clk 0:02:26]} 12. g4 {[%clk 0:02:45]}  Ne4 {[%clk 0:02:20]} 13. Bxe7 {[%clk 0:02:44]}  Qxe7 {[%clk 0:02:19]} 14. Nxe4 {[%clk 0:02:43]}  dxe4 {[%clk 0:02:20]} 15. g5 {[%clk 0:02:39]}  Nd7 {[%clk 0:02:15]} 16. Nxd7 {[%clk 0:02:36]}  Qxd7 {[%clk 0:02:15]} 17. dxc5 {[%clk 0:02:37]}  Qb5 {[%clk 0:01:55]} 18. cxb6 {[%clk 0:01:54]}  axb6 {[%clk 0:01:56]} 19. b3 {[%clk 0:01:49]}  Rfd8 {[%clk 0:01:54]} 20. Qc2 {[%clk 0:01:49]}  Rd3 {[%clk 0:01:53]} 21. c4 {[%clk 0:01:49]}  Qc5 {[%clk 0:01:52]} 22. Rfe1 {[%clk 0:01:38]}  Rad8 {[%clk 0:01:39]} 23. Qf2 {[%clk 0:01:35]}  g6 {[%clk 0:01:27]} 24. Re2 {[%clk 0:01:35]}  Rc3 {[%clk 0:01:26]} 25. Rae1 {[%clk 0:01:33]}  Rdd3 {[%clk 0:01:24]} 26. h4 {[%clk 0:01:33]}  Qf5 {[%clk 0:01:22]} 27. Qg2 {[%clk 0:01:23]}  Kg7 {[%clk 0:01:21]} 28. Kf2 {[%clk 0:01:22]}  e5 {[%clk 0:01:21]} 29. Qg3 {[%clk 0:00:58]}  Rxe3 {[%clk 0:01:09]} 30. Rxe3 {[%clk 0:00:57]}  exf4 {[%clk 0:01:09]} 31. Qg2 {[%clk 0:00:30]}  fxe3+ {[%clk 0:01:08]} 32. Kg1 {[%clk 0:00:30]}  Rd3 {[%clk 0:00:56]} 33. Qg3 {[%clk 0:00:25]}  e2 {[%clk 0:00:44]} 34. Qg2 {[%clk 0:00:20]}  Qf4 {[%clk 0:00:42]} 35. Qxe2 {[%clk 0:00:07]}  Rg3+ {[%clk 0:00:41]} 36. Kh1 {[%clk 0:00:05]}  Qxh4+ {[%clk 0:00:41]} 37. Qh2 {[%clk 0:00:05]}  Rh3 {[%clk 0:00:41]} 0-1


[Site "https://www.chess.com"]

[Event "Titled Tuesday Blitz June 21 Late 2022"]
[White "Konaplev, Anton"]
[Black "Khan, Taffin"]
[WhiteFideId "24165646"]
[BlackFideId "19700024"]
[WhiteElo "2208"]
[BlackElo "1978"]
[Result "1-0"]
[Round "04"]
[TimeControl "180+1"]
[Date "2022.06.22"]
[WhiteClock "0:00:20"]
[BlackClock "0:00:05"]

1. d4 {[%clk 0:03:00]}  Nf6 {[%clk 0:02:59]} 2. c4 {[%clk 0:03:00]}  e6 {[%clk 0:02:58]} 3. Nc3 {[%clk 0:03:00]}  Bb4 {[%clk 0:02:59]} 4. e3 {[%clk 0:03:01]}  d5 {[%clk 0:02:57]} 5. a3 {[%clk 0:03:00]}  Bxc3+ {[%clk 0:02:56]} 6. bxc3 {[%clk 0:03:01]}  Ne4 {[%clk 0:02:55]} 7. Qc2 {[%clk 0:02:59]}  O-O {[%clk 0:02:54]} 8. Bd3 {[%clk 0:02:57]}  f5 {[%clk 0:02:52]} 9. Nf3 {[%clk 0:02:51]}  Nd7 {[%clk 0:02:48]} 10. Bb2 {[%clk 0:02:50]}  Ndf6 {[%clk 0:02:47]} 11. O-O {[%clk 0:02:47]}  c6 {[%clk 0:02:47]} 12. Ne5 {[%clk 0:02:47]}  Bd7 {[%clk 0:02:44]} 13. f3 {[%clk 0:02:47]}  Ng5 {[%clk 0:02:40]} 14. cxd5 {[%clk 0:02:45]}  cxd5 {[%clk 0:02:24]} 15. c4 {[%clk 0:02:44]}  Rc8 {[%clk 0:02:23]} 16. Qd2 {[%clk 0:02:40]}  Nf7 {[%clk 0:02:19]} 17. cxd5 {[%clk 0:02:24]}  Nxd5 {[%clk 0:02:15]} 18. Nxd7 {[%clk 0:02:12]}  Qxd7 {[%clk 0:02:14]} 19. e4 {[%clk 0:02:13]}  Nb6 {[%clk 0:02:08]} 20. Rad1 {[%clk 0:02:12]}  Nc4 {[%clk 0:02:04]} 21. Bxc4 {[%clk 0:02:09]}  Rxc4 {[%clk 0:02:04]} 22. exf5 {[%clk 0:02:04]}  exf5 {[%clk 0:02:03]} 23. d5 {[%clk 0:02:04]}  Rfc8 {[%clk 0:01:53]} 24. Ba1 {[%clk 0:01:49]}  Nd6 {[%clk 0:01:49]} 25. Rf2 {[%clk 0:01:38]}  Qa4 {[%clk 0:01:39]} 26. Re1 {[%clk 0:01:26]}  Qxa3 {[%clk 0:01:31]} 27. Qg5 {[%clk 0:01:25]}  Rc3 {[%clk 0:00:57]} 28. Bxc3 {[%clk 0:01:13]}  Qxc3 {[%clk 0:00:56]} 29. Rfe2 {[%clk 0:00:36]}  Qd4+ {[%clk 0:00:50]} 30. Qe3 {[%clk 0:00:31]}  Qxd5 {[%clk 0:00:49]} 31. Qxa7 {[%clk 0:00:30]}  Nb5 {[%clk 0:00:31]} 32. Qa2 {[%clk 0:00:27]}  Qxa2 {[%clk 0:00:22]} 33. Rxa2 {[%clk 0:00:28]}  Nd4 {[%clk 0:00:20]} 34. Rd1 {[%clk 0:00:25]}  Ne6 {[%clk 0:00:19]} 35. Rb2 {[%clk 0:00:24]}  Nc5 {[%clk 0:00:18]} 36. Rb5 {[%clk 0:00:22]}  Rc7 {[%clk 0:00:17]} 37. Rc1 {[%clk 0:00:21]}  b6 {[%clk 0:00:11]} 38. Rxb6 {[%clk 0:00:21]}  Rb7 {[%clk 0:00:06]} 39. Rxb7 {[%clk 0:00:19]}  Nxb7 {[%clk 0:00:05]} 40. Rc8+ {[%clk 0:00:20]} 1-0


[Site "https://www.chess.com"]

[Event "Titled Tuesday Blitz June 21 Late 2022"]
[White "Korchmar, Vasiliy"]
[Black "Avazkhonov, Alikhon"]
[WhiteFideId "24131750"]
[BlackFideId "14208504"]
[WhiteElo "2370"]
[BlackElo "1739"]
[Result "0-1"]
[Round "04"]
[TimeControl "180+1"]
[Date "2022.06.22"]
[WhiteClock "0:01:59"]
[BlackClock "0:00:31"]

1. e4 {[%clk 0:03:00]}  c5 {[%clk 0:02:59]} 2. Nf3 {[%clk 0:03:01]}  d6 {[%clk 0:02:59]} 3. d4 {[%clk 0:03:01]}  cxd4 {[%clk 0:03:00]} 4. Nxd4 {[%clk 0:03:02]}  Nf6 {[%clk 0:03:01]} 5. Nc3 {[%clk 0:03:03]}  a6 {[%clk 0:03:02]} 6. f3 {[%clk 0:03:03]}  e5 {[%clk 0:02:57]} 7. Nb3 {[%clk 0:03:03]}  h5 {[%clk 0:02:56]} 8. Be3 {[%clk 0:03:02]}  Be6 {[%clk 0:02:55]} 9. Nd5 {[%clk 0:02:53]}  Bxd5 {[%clk 0:02:53]} 10. exd5 {[%clk 0:02:54]}  Nbd7 {[%clk 0:02:53]} 11. c4 {[%clk 0:02:52]}  g6 {[%clk 0:02:52]} 12. Bd3 {[%clk 0:02:48]}  Bh6 {[%clk 0:02:51]} 13. Bf2 {[%clk 0:02:36]}  O-O {[%clk 0:02:34]} 14. O-O {[%clk 0:02:36]}  b6 {[%clk 0:02:16]} 15. Nd2 {[%clk 0:02:23]}  Nc5 {[%clk 0:02:14]} 16. Be2 {[%clk 0:02:22]}  a5 {[%clk 0:02:07]} 17. Nb1 {[%clk 0:02:23]}  e4 {[%clk 0:01:52]} 18. Nc3 {[%clk 0:02:17]}  e3 {[%clk 0:01:19]} 19. Bh4 {[%clk 0:02:17]}  g5 {[%clk 0:01:12]} 20. Be1 {[%clk 0:02:17]}  Nfd7 {[%clk 0:01:00]} 21. Nb5 {[%clk 0:02:15]}  Ne5 {[%clk 0:01:00]} 22. Nd4 {[%clk 0:02:13]}  f5 {[%clk 0:00:57]} 23. f4 {[%clk 0:02:10]}  gxf4 {[%clk 0:00:53]} 24. Rxf4 {[%clk 0:02:11]}  Bxf4 {[%clk 0:00:51]} 25. Bxh5 {[%clk 0:02:09]}  Qg5 {[%clk 0:00:42]} 26. Bc3 {[%clk 0:02:05]}  Qh4 {[%clk 0:00:31]} 27. g3 {[%clk 0:01:57]}  Bxg3 {[%clk 0:00:31]} 28. hxg3 {[%clk 0:01:58]}  Qxg3+ {[%clk 0:00:31]} 29. Kf1 {[%clk 0:01:59]}  Qf2# {[%clk 0:00:31]} 0-1


[Site "https://www.chess.com"]

[Event "Titled Tuesday Blitz June 21 Late 2022"]
[White "Kosakowski, Jakub"]
[Black "Isajevsky, Anton"]
[WhiteFideId "1185080"]
[BlackFideId "4142500"]
[WhiteElo "2476"]
[BlackElo "2510"]
[Result "1-0"]
[Round "04"]
[TimeControl "180+1"]
[Date "2022.06.21"]
[WhiteClock "0:02:00"]
[BlackClock "0:00:05"]

1. c4 {[%clk 0:03:00]}  c5 {[%clk 0:02:57]} 2. Nf3 {[%clk 0:03:00]}  g6 {[%clk 0:02:51]} 3. e3 {[%clk 0:02:58]}  Nf6 {[%clk 0:02:50]} 4. d4 {[%clk 0:02:58]}  Bg7 {[%clk 0:02:35]} 5. Nc3 {[%clk 0:02:55]}  O-O {[%clk 0:02:35]} 6. Be2 {[%clk 0:02:41]}  cxd4 {[%clk 0:02:34]} 7. Nxd4 {[%clk 0:02:34]}  Nc6 {[%clk 0:02:14]} 8. O-O {[%clk 0:02:33]}  d6 {[%clk 0:02:14]} 9. b3 {[%clk 0:02:32]}  Nxd4 {[%clk 0:01:59]} 10. exd4 {[%clk 0:02:31]}  d5 {[%clk 0:01:57]} 11. c5 {[%clk 0:02:26]}  a5 {[%clk 0:01:36]} 12. Bf4 {[%clk 0:02:22]}  Ne4 {[%clk 0:01:27]} 13. Na4 {[%clk 0:02:17]}  Bd7 {[%clk 0:01:24]} 14. Nb6 {[%clk 0:02:13]}  Nc3 {[%clk 0:01:18]} 15. Qd2 {[%clk 0:02:04]}  Bxd4 {[%clk 0:00:51]} 16. Rac1 {[%clk 0:02:02]}  Nxe2+ {[%clk 0:00:41]} 17. Qxe2 {[%clk 0:02:01]}  Bc6 {[%clk 0:00:24]} 18. Nxa8 {[%clk 0:02:00]}  Qxa8 {[%clk 0:00:23]} 19. Qxe7 {[%clk 0:02:00]}  Re8 {[%clk 0:00:23]} 20. Qh4 {[%clk 0:02:00]}  Re4 {[%clk 0:00:21]} 21. Rfe1 {[%clk 0:02:01]}  Rxe1+ {[%clk 0:00:04]} 22. Rxe1 {[%clk 0:02:01]}  Bxc5 {[%clk 0:00:05]} 23. Qf6 {[%clk 0:02:00]} 1-0


[Site "https://www.chess.com"]

[Event "Titled Tuesday Blitz June 21 Late 2022"]
[White "Ladan, Nicholas"]
[Black "Christiansen, Johan-Sebastian"]
[WhiteFideId "30918855"]
[BlackFideId "1512668"]
[WhiteElo "2167"]
[BlackElo "2513"]
[Result "0-1"]
[Round "04"]
[TimeControl "180+1"]
[Date "2022.06.22"]
[WhiteClock "0:00:08"]
[BlackClock "0:01:12"]

1. d4 {[%clk 0:03:00]}  Nf6 {[%clk 0:02:59]} 2. c4 {[%clk 0:03:00]}  c5 {[%clk 0:02:59]} 3. d5 {[%clk 0:03:00]}  b5 {[%clk 0:03:00]} 4. Qc2 {[%clk 0:02:57]}  bxc4 {[%clk 0:02:52]} 5. e4 {[%clk 0:02:58]}  e6 {[%clk 0:02:48]} 6. Bxc4 {[%clk 0:02:57]}  exd5 {[%clk 0:02:49]} 7. exd5 {[%clk 0:02:57]}  d6 {[%clk 0:02:49]} 8. Nf3 {[%clk 0:02:50]}  Be7 {[%clk 0:02:50]} 9. Bb5+ {[%clk 0:02:41]}  Nbd7 {[%clk 0:02:50]} 10. O-O {[%clk 0:02:40]}  O-O {[%clk 0:02:50]} 11. Nc3 {[%clk 0:02:39]}  Nb6 {[%clk 0:02:49]} 12. a4 {[%clk 0:02:28]}  Nbxd5 {[%clk 0:02:49]} 13. Nxd5 {[%clk 0:02:27]}  Nxd5 {[%clk 0:02:50]} 14. Qe4 {[%clk 0:02:21]}  Be6 {[%clk 0:02:42]} 15. Rd1 {[%clk 0:02:03]}  Nf6 {[%clk 0:02:35]} 16. Qc2 {[%clk 0:01:59]}  Bg4 {[%clk 0:02:35]} 17. Bf4 {[%clk 0:01:51]}  Bxf3 {[%clk 0:02:32]} 18. gxf3 {[%clk 0:01:52]}  Rb8 {[%clk 0:02:27]} 19. Rd2 {[%clk 0:01:47]}  Rb6 {[%clk 0:02:09]} 20. Rad1 {[%clk 0:01:45]}  d5 {[%clk 0:02:09]} 21. Be5 {[%clk 0:01:35]}  d4 {[%clk 0:02:05]} 22. Kh1 {[%clk 0:01:35]}  Qd5 {[%clk 0:02:03]} 23. Qf5 {[%clk 0:01:11]}  g6 {[%clk 0:01:55]} 24. Qf4 {[%clk 0:01:07]}  Nh5 {[%clk 0:01:50]} 25. Qe4 {[%clk 0:01:06]}  Qxe4 {[%clk 0:01:49]} 26. fxe4 {[%clk 0:01:07]}  Re6 {[%clk 0:01:49]} 27. f4 {[%clk 0:01:00]}  Bd6 {[%clk 0:01:40]} 28. Bxd6 {[%clk 0:00:54]}  Rxd6 {[%clk 0:01:41]} 29. e5 {[%clk 0:00:41]}  Rb6 {[%clk 0:01:41]} 30. b4 {[%clk 0:00:33]}  cxb4 {[%clk 0:01:41]} 31. Rxd4 {[%clk 0:00:33]}  a6 {[%clk 0:01:42]} 32. Bc4 {[%clk 0:00:31]}  b3 {[%clk 0:01:39]} 33. Rd6 {[%clk 0:00:26]}  Rfb8 {[%clk 0:01:28]} 34. Bxa6 {[%clk 0:00:24]}  b2 {[%clk 0:01:27]} 35. Bb5 {[%clk 0:00:23]}  Nxf4 {[%clk 0:01:24]} 36. Rxb6 {[%clk 0:00:22]}  Rxb6 {[%clk 0:01:23]} 37. Rb1 {[%clk 0:00:22]}  Nd5 {[%clk 0:01:13]} 38. Rxb2 {[%clk 0:00:21]}  Nc3 {[%clk 0:01:13]} 39. Kg2 {[%clk 0:00:14]}  Nxa4 {[%clk 0:01:13]} 40. Rb4 {[%clk 0:00:13]}  Nc3 {[%clk 0:01:13]} 41. e6 {[%clk 0:00:08]}  fxe6 {[%clk 0:01:12]} 0-1


[Site "https://www.chess.com"]

[Event "Titled Tuesday Blitz June 21 Late 2022"]
[White "Le, Tuan Minh"]
[Black "Moussard, Jules"]
[WhiteFideId "12401153"]
[BlackFideId "642908"]
[WhiteElo "2530"]
[BlackElo "2589"]
[Result "1-0"]
[Round "04"]
[TimeControl "180+1"]
[Date "2022.06.21"]
[WhiteClock "0:00:08"]
[BlackClock "0:00:30"]

1. d4 {[%clk 0:03:00]}  Nf6 {[%clk 0:03:00]} 2. Nf3 {[%clk 0:02:58]}  b6 {[%clk 0:02:59]} 3. Bf4 {[%clk 0:02:58]}  Bb7 {[%clk 0:03:00]} 4. e3 {[%clk 0:02:59]}  g6 {[%clk 0:03:00]} 5. Be2 {[%clk 0:02:55]}  Bg7 {[%clk 0:03:00]} 6. O-O {[%clk 0:02:55]}  O-O {[%clk 0:03:00]} 7. h3 {[%clk 0:02:55]}  c5 {[%clk 0:03:01]} 8. c3 {[%clk 0:02:54]}  d6 {[%clk 0:03:01]} 9. Nbd2 {[%clk 0:02:54]}  Nbd7 {[%clk 0:03:01]} 10. a4 {[%clk 0:02:54]}  a6 {[%clk 0:03:01]} 11. Bh2 {[%clk 0:02:55]}  Ra7 {[%clk 0:02:59]} 12. Bd3 {[%clk 0:02:52]}  Qa8 {[%clk 0:02:58]} 13. Qe2 {[%clk 0:02:50]}  Ne4 {[%clk 0:02:57]} 14. Rfd1 {[%clk 0:02:35]}  Ndf6 {[%clk 0:02:48]} 15. Ne1 {[%clk 0:02:32]}  Nxd2 {[%clk 0:02:44]} 16. Qxd2 {[%clk 0:02:31]}  Rc8 {[%clk 0:02:43]} 17. Qe2 {[%clk 0:02:27]}  Bh6 {[%clk 0:02:22]} 18. Bg3 {[%clk 0:02:03]}  Be4 {[%clk 0:02:16]} 19. Bc4 {[%clk 0:01:40]}  Bd5 {[%clk 0:02:13]} 20. Bxd5 {[%clk 0:01:31]}  Qxd5 {[%clk 0:02:12]} 21. Nd3 {[%clk 0:01:32]}  Qc6 {[%clk 0:01:56]} 22. Bf4 {[%clk 0:01:28]}  Bg7 {[%clk 0:01:56]} 23. Bg5 {[%clk 0:01:29]}  h6 {[%clk 0:01:55]} 24. Bxf6 {[%clk 0:01:27]}  Bxf6 {[%clk 0:01:55]} 25. Nf4 {[%clk 0:01:27]}  h5 {[%clk 0:01:53]} 26. Rd2 {[%clk 0:00:46]}  Bg5 {[%clk 0:01:52]} 27. Nd3 {[%clk 0:00:41]}  Rb8 {[%clk 0:01:49]} 28. Qf3 {[%clk 0:00:35]}  Qxf3 {[%clk 0:01:48]} 29. gxf3 {[%clk 0:00:35]}  Rc7 {[%clk 0:01:45]} 30. f4 {[%clk 0:00:33]}  Bf6 {[%clk 0:01:45]} 31. Kg2 {[%clk 0:00:34]}  Kg7 {[%clk 0:01:42]} 32. Kf3 {[%clk 0:00:33]}  e6 {[%clk 0:01:40]} 33. Ke2 {[%clk 0:00:26]}  Be7 {[%clk 0:01:35]} 34. Ne1 {[%clk 0:00:26]}  cxd4 {[%clk 0:01:13]} 35. cxd4 {[%clk 0:00:23]}  Rbc8 {[%clk 0:01:12]} 36. Kd3 {[%clk 0:00:19]}  Rc1 {[%clk 0:01:08]} 37. Rd1 {[%clk 0:00:19]}  R1c4 {[%clk 0:00:58]} 38. Kd2 {[%clk 0:00:18]}  d5 {[%clk 0:00:51]} 39. Nd3 {[%clk 0:00:17]}  Rc2+ {[%clk 0:00:51]} 40. Ke1 {[%clk 0:00:17]}  Bh4 {[%clk 0:00:52]} 41. Kf1 {[%clk 0:00:15]}  R8c4 {[%clk 0:00:50]} 42. Ra3 {[%clk 0:00:14]}  a5 {[%clk 0:00:41]} 43. Rb3 {[%clk 0:00:14]}  Bd8 {[%clk 0:00:41]} 44. Ra3 {[%clk 0:00:13]}  Be7 {[%clk 0:00:39]} 45. Rb3 {[%clk 0:00:12]}  Bb4 {[%clk 0:00:40]} 46. Ne5 {[%clk 0:00:09]}  f6 {[%clk 0:00:37]} 47. Nd3 {[%clk 0:00:09]}  Kf7 {[%clk 0:00:33]} 48. Kg2 {[%clk 0:00:09]}  Re2 {[%clk 0:00:26]} 49. Kf3 {[%clk 0:00:08]}  Rcc2 {[%clk 0:00:26]} 50. Rf1 {[%clk 0:00:09]}  Red2 {[%clk 0:00:25]} 51. Nxb4 {[%clk 0:00:09]}  axb4 {[%clk 0:00:26]} 52. Rxb4 {[%clk 0:00:10]}  Rxb2 {[%clk 0:00:27]} 53. Rxb2 {[%clk 0:00:09]}  Rxb2 {[%clk 0:00:28]} 54. Rc1 {[%clk 0:00:09]}  Ke7 {[%clk 0:00:27]} 55. Rc7+ {[%clk 0:00:05]}  Kd6 {[%clk 0:00:27]} 56. Rg7 {[%clk 0:00:03]}  Ra2 {[%clk 0:00:28]} 57. Rxg6 {[%clk 0:00:03]}  Rxa4 {[%clk 0:00:28]} 58. Rxf6 {[%clk 0:00:03]}  Ra7 {[%clk 0:00:28]} 59. f5 {[%clk 0:00:03]}  b5 {[%clk 0:00:27]} 60. Rxe6+ {[%clk 0:00:04]}  Kd7 {[%clk 0:00:28]} 61. Rb6 {[%clk 0:00:04]}  Ra5 {[%clk 0:00:27]} 62. f6 {[%clk 0:00:04]}  Kc7 {[%clk 0:00:28]} 63. f7 {[%clk 0:00:05]}  Ra8 {[%clk 0:00:29]} 64. Rxb5 {[%clk 0:00:05]}  Kc6 {[%clk 0:00:30]} 65. Rc5+ {[%clk 0:00:05]}  Kd6 {[%clk 0:00:30]} 66. e4 {[%clk 0:00:06]}  dxe4+ {[%clk 0:00:31]} 67. Kxe4 {[%clk 0:00:07]}  Rf8 {[%clk 0:00:31]} 68. Rf5 {[%clk 0:00:07]}  h4 {[%clk 0:00:32]} 69. d5 {[%clk 0:00:07]}  Ke7 {[%clk 0:00:30]} 70. Ke5 {[%clk 0:00:07]}  Kd7 {[%clk 0:00:31]} 71. d6 {[%clk 0:00:07]}  Ra8 {[%clk 0:00:30]} 72. f8=Q {[%clk 0:00:07]}  Rb8 {[%clk 0:00:29]} 73. Qe7+ {[%clk 0:00:07]}  Kc6 {[%clk 0:00:30]} 74. Qc7+ {[%clk 0:00:08]} 1-0


[Site "https://www.chess.com"]